bitfinex/quotes_ETHUSD_20251012
["timestamp","ask_amount","ask_price","bid_price","bid_amount"]
[1760301340856,2.40809245,4154.4,4153.6,2.40750866]
[1760301341155,2.40726212,4154.1,4153.4,2.40760823]
[1760301341657,1.92,4154.3,4153.4,2.40760823]
[1760301341658,2.40721497,4154.2,4153.4,2.40760823]
[1760301341858,2.40721497,4154.2,4153.5,2.40760457]
[1760301342058,0.001,4154.4,4152.5,0.6336]
[1760301342299,0.001,4154.4,4153.6,2.40749762]
[1760301342486,2.40809337,4154.4,4153.4,2.40765114]
[1760301342781,0.001,4154.4,4154.3,0.12]
[1760301343368,0.001,4154.4,4154.3,2.5271444]
[1760301343567,0.001,4154.4,4154.3,2.4071444]
[1760301344991,0.001,4154.4,4154.1,2.40725673]
[1760301345188,0.001,4154.4,4154.2,2.40717321]
[1760301345388,0.001,4154.4,4151.2,2.5536]
[1760301345691,0.001,4154.4,4152.9,2.40793294]
[1760301345692,2.40813288,4154.4,4152.9,2.40793294]
[1760301346194,2.40813288,4154.4,4153.4,2.40765397]
[1760301346195,4.32725317,4154.2,4153.4,2.40765397]
[1760301346372,1.92,4154.3,4152.3,0.002]
[1760301346577,1.92,4154.2,4152.7,2.40803233]
[1760301346758,0.001,4154.4,4152.7,2.40803233]
[1760301346959,0.001,4154.4,4152.3,0.002]
[1760301346960,2.4076537,4153.5,4152.3,0.002]
[1760301347160,2.4076745,4153.4,4152.5,2.40818665]
[1760301347389,2.4076745,4153.4,4152.4,2.40824583]
[1760301347585,2.4076745,4153.4,4152.3,0.002]
[1760301347586,1.92,4153.3,4152.3,0.002]
[1760301347758,1.92,4152.9,4152.3,0.002]
[1760301347958,4.32816624,4152.6,4152.3,0.002]
[1760301348288,7.56995583,4152.4,4152.3,0.002]
[1760301348714,0.39177395,4153.6,4152.3,0.002]
[1760301349012,1.92,4153.2,4152.3,2.41025595]
[1760301349188,1.92,4154.2,4152.3,0.002]
[1760301349520,2.4071512,4154.3,4153.4,2.40765603]
[1760301349719,2.40697196,4154.6,4153.2,2.40776881]
[1760301349889,15.04347372,4155.2,4153.3,2.40766958]
[1760301349890,2.40721938,4154.2,4153.3,2.40766958]
[1760301350308,2.40727949,4154.1,4153.3,2.40766958]
[1760301350509,2.40734117,4154.0,4153.2,2.40777459]
[1760301350691,2.40754843,4153.7,4152.3,0.002]
[1760301350903,4.3276134,4153.5,4152.3,0.002]
[1760301351102,1.92,4153.9,4152.3,0.002]
[1760301351302,2.40761754,4153.5,4152.7,2.40805555]
[1760301351706,1.92,4154.2,4152.7,2.40805555]
[1760301351893,2.40770894,4153.4,4152.5,2.4081436]
[1760301352105,1.92,4154.0,4152.3,0.002]
[1760301352433,2.4079066,4153.0,4152.3,0.002]
[1760301352586,2.40783992,4153.1,4152.3,0.002]
[1760301352782,1.92,4153.6,4152.3,0.002]
[1760301352984,4.875076,4152.4,4152.3,0.002]
[1760301353220,4.32824583,4152.4,4152.3,0.002]
[1760301353536,6.69460083,4152.4,4152.3,0.002]
[1760301354139,9.00039583,4152.4,4152.3,0.002]
[1760301355491,17.46433183,4152.4,4152.3,0.002]
[1760301355687,12.08326783,4152.4,4152.3,0.002]
[1760301355889,11.58126783,4152.4,4152.3,0.002]
[1760301356195,8.56626783,4152.4,4152.3,0.002]
[1760301356425,4.32824583,4152.4,4152.3,0.002]
[1760301356585,10.86920983,4152.4,4152.3,0.002]
[1760301357518,24.92873283,4152.4,4152.3,0.002]
[1760301357688,25.32050678,4152.4,4152.3,0.002]
[1760301357890,25.95410678,4152.4,4152.3,0.002]
[1760301358108,40.9975805,4152.4,4152.3,0.002]
[1760301358616,44.1034655,4152.4,4152.3,0.002]
[1760301358996,42.9557925,4152.4,4152.3,0.002]
[1760301359203,24.9559505,4152.4,4152.3,0.002]
[1760301359716,40.3466055,4152.4,4152.3,0.002]
[1760301359925,34.9642935,4152.4,4152.3,0.002]
[1760301360620,48.2227495,4152.4,4152.3,0.002]
[1760301360994,48.54366443,4152.4,4152.3,0.002]
[1760301361303,47.85061643,4152.4,4152.3,0.002]
[1760301361693,50.71800843,4152.4,4152.3,0.002]
[1760301362002,2.40847784,4152.0,4151.5,0.002]
[1760301362218,0.39177395,4152.3,4151.5,0.002]
[1760301362418,2.40870989,4151.6,4151.5,0.002]
[1760301363328,7.50841,4152.8,4151.5,0.002]
[1760301363509,2.40870989,4151.6,4151.5,0.002]
[1760301363727,1.92,4152.1,4151.5,0.002]
[1760301363943,2.40870989,4151.6,4151.5,0.002]
[1760301364442,17.94609291,4151.5,4151.4,1e-08]
[1760301364652,2.40929022,4150.6,4150.5,0.002]
[1760301364944,2.40929022,4150.6,4145.8,2.4120398]
[1760301364945,1.92,4149.6,4147.2,2.41122045]
[1760301365151,1.92,4149.4,4149.1,0.12]
[1760301365353,4.33010315,4149.2,4149.1,0.12]
[1760301366045,2.4104532,4148.6,4147.7,0.002]
[1760301366215,1.92,4149.6,4148.8,0.12]
[1760301366414,2.4101088,4149.2,4148.5,0.12]
[1760301366669,2.41018568,4149.1,4148.9,0.12]
[1760301366824,2.41021932,4149.0,4148.9,0.12]
[1760301367911,2.40934827,4150.5,4148.9,0.12]
[1760301368114,2.41010692,4149.2,4148.4,2.41055148]
[1760301368314,2.40995737,4149.5,4148.1,2.41271353]
[1760301368315,1.92,4149.5,4148.1,0.002]
[1760301368561,2.41011436,4149.2,4148.1,2.41273494]
[1760301368859,2.40969661,4149.9,4148.1,0.002]
[1760301369156,2.40987083,4149.6,4148.1,0.002]
[1760301369355,4.200159,4149.1,4148.1,0.002]
[1760301369652,1.92,4149.6,4148.1,0.002]
[1760301369856,0.32091493,4150.9,4148.1,0.002]
[1760301370018,2.4097263,4149.9,4148.9,2.41025602]
[1760301370367,2.40979141,4149.8,4148.8,2.41032652]
[1760301370527,2.40981892,4149.7,4148.8,2.41032652]
[1760301370869,2.40981892,4149.7,4148.2,2.41068415]
[1760301370870,1.92,4149.7,4148.2,2.41068415]
[1760301371176,2.40988103,4149.6,4148.8,2.41028355]
[1760301371380,1.92,4149.8,4148.9,2.41026947]
[1760301371381,2.40981572,4149.7,4148.9,2.41026947]
[1760301371580,4.32991656,4149.6,4148.7,2.41034544]
[1760301371780,2.40991656,4149.6,4148.7,2.41034544]
[1760301372081,2.40982761,4149.7,4148.6,2.41043642]
[1760301372250,2.40982761,4149.7,4148.1,0.6356]
[1760301372251,2.40987083,4149.6,4148.7,2.4103714]
[1760301372585,2.40981004,4149.8,4148.9,2.4102699]
[1760301372787,2.40983033,4149.7,4148.9,2.4102699]
[1760301372993,2.40993963,4149.5,4148.7,2.41036465]
[1760301373188,2.40993963,4149.5,4148.4,2.41056659]
[1760301373189,2.40988276,4149.6,4148.8,2.41033317]
[1760301373600,2.40935664,4150.5,4148.6,2.41043714]
[1760301373601,2.40997491,4149.5,4148.6,2.41042954]
[1760301373787,2.40997491,4149.5,4148.5,2.41049314]
[1760301373974,2.40988511,4149.6,4148.8,2.41032069]
[1760301374176,2.40988511,4149.6,4148.1,0.002]
[1760301374177,2.40988511,4149.6,4148.9,2.41027164]
[1760301374914,2.40982573,4149.7,4148.9,2.41027164]
[1760301375259,2.40982573,4149.7,4148.7,2.41038046]
[1760301375260,2.40976391,4149.8,4149.0,2.41021629]
[1760301375460,2.85886391,4149.8,4149.0,2.41021629]
[1760301375860,2.40983279,4149.7,4148.9,2.41027217]
[1760301376182,2.1591,4149.6,4148.9,2.41027059]
[1760301376701,2.1591,4149.6,4149.0,2.41021766]
[1760301377108,0.2391,4149.6,4148.3,0.6336]
[1760301377273,0.2391,4149.6,4148.1,0.6356]
[1760301377591,0.2391,4150.4,4149.6,2.40981539]
[1760301377770,1.92,4150.3,4149.6,2.4098284]
[1760301378091,0.4438,4151.0,4149.2,0.6336]
[1760301378285,2.313214,4150.9,4150.6,0.12]
[1760301378479,0.4438,4151.0,4150.6,0.12]
[1760301378480,0.2299,4150.8,4150.6,0.12]
[1760301379009,0.2299,4150.7,4150.6,0.12]
[1760301379695,4.32932035,4150.6,4149.0,2.41021932]
[1760301379906,0.2299,4150.5,4149.7,2.40976606]
[1760301380108,1.92,4150.4,4149.7,2.40976606]
[1760301380310,0.2299,4150.8,4149.0,2.41021932]
[1760301380513,0.001,4150.7,4150.1,2.40953117]
[1760301381099,1.92,4150.5,4148.4,0.4478]
[1760301381304,2.40964464,4150.0,4149.2,2.41008416]
[1760301381614,0.2299,4150.4,4148.5,2.41049117]
[1760301381615,5.16736,4149.8,4148.5,2.41049117]
[1760301381913,1.92,4149.7,4148.7,2.41034905]
[1760301382113,2.40987083,4149.6,4148.8,2.41031978]
[1760301382279,2.40988887,4149.6,4148.6,2.41245052]
[1760301382481,2.40993485,4149.5,4148.8,2.4102832]
[1760301382681,2.40991501,4149.6,4148.8,2.4102832]
[1760301382910,2.41005819,4149.3,4148.6,2.41239633]
[1760301383118,1.92,4149.4,4148.6,0.002]
[1760301383409,2.41008726,4149.3,4148.6,2.4124249]
[1760301383622,2.63984615,4149.5,4148.7,2.41038684]
[1760301383824,2.63983573,4149.5,4148.6,0.002]
[1760301383991,0.2299,4149.5,4148.6,0.002]
[1760301384185,1.92,4149.6,4148.6,0.002]
[1760301384407,0.2299,4150.2,4149.5,2.40991282]
[1760301384587,0.2299,4150.2,4148.8,2.41033551]
[1760301384588,0.2299,4150.2,4149.3,2.40999175]
[1760301385092,1.92,4150.1,4149.5,2.40991317]
[1760301385304,0.2299,4150.6,4149.0,1.0814]
[1760301385620,0.2299,4150.6,4149.8,2.40969948]
[1760301385809,2.40935247,4150.5,4149.8,2.40969948]
[1760301386004,2.40940945,4150.4,4149.7,2.40980604]
[1760301386263,2.40936331,4150.5,4149.8,2.40974135]
[1760301386574,2.40936331,4150.5,4149.0,2.85797578]
[1760301386575,4.32941089,4150.4,4149.7,2.40976902]
[1760301386865,2.40936094,4150.5,4149.8,2.4097534]
[1760301387469,2.40942431,4150.4,4149.6,2.40986126]
[1760301387866,0.001,4150.7,4148.6,0.002]
[1760301387867,0.2139,4149.7,4148.6,0.002]
[1760301388163,0.2299,4149.6,4149.0,2.41017757]
[1760301388665,0.2299,4149.6,4149.2,2.4100992]
[1760301389167,0.2299,4149.6,4149.1,2.4101449]
[1760301389332,0.2139,4149.7,4149.1,2.4101449]
[1760301389532,0.4438,4149.7,4149.1,2.4101449]
[1760301389735,2.3638,4149.7,4149.5,0.12]
[1760301389947,0.2299,4149.6,4149.5,0.12]
[1760301390538,4.55977083,4149.6,4149.5,0.12]
[1760301391082,2.41002821,4149.4,4148.6,0.002]
[1760301391250,2.4102266,4149.0,4148.6,0.002]
[1760301391455,2.41028624,4148.9,4148.6,0.002]
[1760301391651,1.92,4148.8,4148.6,0.002]
[1760301391890,0.2299,4148.8,4148.6,0.002]
[1760301392050,0.2299,4148.7,4148.6,0.002]
[1760301392254,4.56029361,4148.7,4148.6,0.002]
[1760301393258,1.92,4148.7,4148.6,0.002]
[1760301393755,2.1499,4148.7,4148.6,0.002]
[1760301394948,4.56029361,4148.7,4148.6,0.002]
[1760301397074,2.1499,4148.7,4148.6,0.002]
[1760301397375,4.56029361,4148.7,4148.6,0.002]
[1760301397803,0.2309,4149.6,4148.6,0.002]
[1760301397952,0.2309,4149.6,4148.9,2.41026806]
[1760301398152,0.2309,4149.6,4148.6,0.002]
[1760301398683,0.2309,4149.6,4149.1,2.41015415]
[1760301398875,0.001,4149.6,4148.8,2.41030718]
[1760301399081,0.2299,4149.5,4148.8,2.41030718]
[1760301399283,0.2299,4149.5,4149.0,2.41019969]
[1760301399449,0.2299,4149.5,4149.1,2.41015744]
[1760301399648,0.2299,4149.5,4149.0,2.41021159]
[1760301399850,0.2299,4149.5,4148.8,2.41030718]
[1760301399851,0.2299,4149.5,4149.1,2.41014403]
[1760301400049,0.2299,4149.5,4149.0,2.41020845]
[1760301400462,0.2299,4149.4,4149.0,2.41020845]
[1760301400661,0.2299,4149.3,4149.0,2.41020845]
[1760301400888,0.2299,4149.2,4149.0,2.41020845]
[1760301401249,0.2299,4149.2,4149.1,0.12]
[1760301401665,0.2299,4149.2,4149.1,2.53016123]
[1760301401860,0.2309,4149.6,4149.1,2.53015744]
[1760301402069,0.2299,4149.5,4149.1,2.53015744]
[1760301402391,0.001,4149.6,4148.6,0.002]
[1760301402392,0.2299,4149.4,4148.6,0.002]
[1760301402552,2.41008894,4149.3,4149.0,0.12]
[1760301402752,0.38690434,4149.4,4149.0,0.12]
[1760301402988,2.40997655,4149.5,4149.0,0.12]
[1760301403294,4.33088409,4149.6,4149.0,0.12]
[1760301403465,2.40994009,4149.5,4149.0,0.12]
[1760301404400,2.41006947,4149.3,4149.0,0.12]
[1760301404609,1.92,4149.4,4148.6,0.002]
[1760301404889,2.41038554,4148.8,4148.6,0.002]
[1760301405124,2.30690434,4149.2,4148.6,0.002]
[1760301405301,2.41028669,4148.9,4148.6,0.002]
[1760301405479,2.41037972,4148.8,4148.6,0.002]
[1760301405911,1.92,4148.8,4148.6,0.002]
[1760301406075,6.526433,4149.0,4148.6,0.002]
[1760301406277,2.41039361,4148.7,4148.6,0.002]
[1760301407198,0.001,4149.6,4148.6,0.002]
[1760301407618,0.001,4149.6,4149.5,2.4099289]
[1760301407826,0.001,4149.6,4148.8,0.6336]
[1760301408026,0.001,4149.6,4149.5,2.4099289]
[1760301408193,0.001,4149.6,4148.6,0.002]
[1760301408398,0.001,4149.6,4149.5,2.4099289]
[1760301408914,0.001,4149.6,4149.5,3.4872289]
[1760301409699,0.001,4149.6,4149.5,2.4099289]
[1760301410322,0.0031,4149.6,4148.6,0.002]
[1760301410814,0.0031,4149.6,4148.8,2.41032288]
[1760301411001,0.0031,4149.6,4149.1,2.41014207]
[1760301411519,0.001,4149.6,4149.5,2.4099289]
[1760301412118,0.001,4149.6,4149.5,3.4872289]
[1760301415001,0.001,4149.6,4149.5,3.6072289]
[1760301421668,1e-08,4150.0,4149.9,3.04329661]
[1760301421949,1e-08,4150.0,4149.9,3.48699661]
[1760301422152,1e-08,4150.7,4150.6,3.04289022]
[1760301422652,1e-08,4150.7,4150.6,3.48659022]
[1760301424252,1e-08,4150.7,4150.6,2.40929022]
[1760301425670,1e-08,4150.7,4150.6,2.85299022]
[1760301425972,1e-08,4150.7,4150.6,3.48659022]
[1760301432052,1e-08,4150.7,4150.6,3.60659022]
[1760301435076,0.001,4151.2,4151.1,3.04260002]
[1760301435275,0.001,4151.6,4151.5,3.04236791]
[1760301435489,15.62440284,4154.4,4151.8,0.6336]
[1760301435490,0.0021,4154.3,4151.8,0.6336]
[1760301435674,0.0021,4154.3,4151.0,15.50176524]
[1760301435675,0.0021,4154.3,4152.9,0.6336]
[1760301435989,0.001,4154.4,4152.9,0.6336]
[1760301436188,2.40728291,4154.1,4153.2,2.40773254]
[1760301436696,2.40728291,4154.1,4153.3,2.40772313]
[1760301436879,2.40728291,4154.1,4152.5,0.2341]
[1760301436880,0.001,4154.4,4153.8,2.40741779]
[1760301437189,0.001,4154.4,4153.7,2.40747297]
[1760301437358,2.40724111,4154.2,4153.0,0.6336]
[1760301437686,2.40724111,4154.2,4152.5,0.2341]
[1760301437687,2.40742477,4153.9,4152.6,0.6336]
[1760301437885,0.39232101,4154.1,4152.6,0.6336]
[1760301438092,2.40740024,4153.9,4153.1,2.40778539]
[1760301438390,1.92,4153.8,4153.1,2.40778539]
[1760301438575,1.92,4153.8,4153.2,2.40777944]
[1760301438775,1.92,4153.8,4152.6,0.6336]
[1760301438776,2.40744872,4153.8,4152.8,0.6336]
[1760301439094,2.40759568,4153.6,4152.8,2.40801171]
[1760301439279,0.008,4153.7,4152.6,2.40808075]
[1760301439459,2.40766741,4153.4,4152.7,2.40806285]
[1760301439660,2.41550688,4153.7,4152.3,0.6336]
[1760301439661,0.008,4153.7,4152.3,0.6336]
[1760301439869,0.008,4153.7,4152.7,2.40805617]
[1760301440073,2.40761893,4153.5,4152.7,2.40805617]
[1760301440368,2.40756644,4153.6,4152.8,2.40800426]
[1760301440690,2.40799853,4152.9,4151.6,2.40870989]
[1760301440900,0.008,4153.2,4151.5,0.4558]
[1760301441097,2.4080117,4152.9,4152.2,2.40835762]
[1760301441259,2.41578279,4153.2,4152.3,2.40829041]
[1760301441260,1.928,4153.2,4152.3,2.40829041]
[1760301441577,2.40797152,4152.9,4152.2,2.40835626]
[1760301441778,2.40797152,4152.9,4151.4,0.2341]
[1760301441779,12.352557,4152.7,4150.5,0.4558]
[1760301442096,12.352557,4152.7,4150.2,2.40952243]
[1760301442097,2.40883224,4151.4,4150.2,2.40952243]
[1760301442302,2.4088886,4151.3,4149.8,0.4558]
[1760301442459,2.4088886,4151.3,4150.4,2.40935655]
[1760301442684,0.0043,4151.2,4150.1,2.40957611]
[1760301442897,0.0043,4151.2,4149.3,0.4578]
[1760301443095,2.40918925,4150.8,4149.9,2.40968835]
[1760301443402,2.40910239,4151.0,4149.5,0.6336]
[1760301443585,2.40910239,4151.0,4150.2,2.40951647]
[1760301443784,2.40910239,4151.0,4150.0,2.40963101]
[1760301443990,2.40910239,4151.0,4150.1,2.40953727]
[1760301444192,2.40927766,4150.7,4149.3,0.4578]
[1760301444390,2.4093077,4150.6,4149.8,2.40973436]
[1760301444602,2.40924676,4150.7,4149.9,2.40968428]
[1760301444809,1.92,4150.8,4149.9,2.40968428]
[1760301445014,1.92,4150.8,4149.6,2.40986593]
[1760301445015,2.40933912,4150.6,4149.3,0.4578]
[1760301445312,4.33344806,4150.9,4150.6,0.12]
[1760301445499,0.0043,4150.8,4150.6,0.12]
[1760301445699,2.41353217,4150.7,4150.6,0.12]
[1760301445912,2.40950711,4150.3,4149.4,2.40993695]
[1760301446114,2.40950711,4150.3,4150.2,0.12]
[1760301446811,2.41380711,4150.3,4150.2,0.12]
[1760301447135,2.40901237,4151.1,4150.0,2.40961839]
[1760301447312,2.41335805,4151.0,4150.8,0.12]
[1760301447520,0.0043,4151.0,4150.8,0.12]
[1760301447716,2.40883472,4151.4,4150.8,0.12]
[1760301447914,4.32883472,4151.4,4151.1,0.12]
[1760301448113,2.40894199,4151.2,4151.1,0.12]
[1760301448292,0.0043,4151.3,4151.1,0.12]
[1760301449588,0.0043,4151.2,4151.1,0.12]
[1760301450230,2.41324199,4151.2,4151.1,0.12]
[1760301450604,0.001,4151.6,4151.1,2.52899781]
[1760301450805,0.001,4151.6,4151.1,0.12]
[1760301451010,0.001,4151.6,4151.5,2.52876791]
[1760301451204,0.001,4151.6,4151.5,3.16236791]
[1760301451392,0.001,4151.6,4151.5,3.61816791]
[1760301452123,0.001,4151.6,4151.5,3.49816791]
[1760301452298,0.001,4151.6,4150.7,2.40923217]
[1760301452499,0.001,4151.6,4151.4,2.40882406]
[1760301452695,0.001,4151.6,4149.4,1.922]
[1760301452696,0.0074,4151.6,4149.8,0.4578]
[1760301453023,0.0074,4151.6,4150.8,2.40914997]
[1760301453024,0.2108,4151.5,4150.8,2.40914997]
[1760301453204,1.92,4151.4,4150.8,2.40917212]
[1760301453404,1.92,4151.2,4149.8,0.002]
[1760301453607,0.39472101,4151.3,4149.8,0.002]
[1760301453812,2.40923628,4150.7,4149.9,2.40965212]
[1760301454324,2.40912161,4150.9,4150.1,2.40957908]
[1760301454622,1.9284,4151.1,4149.8,0.002]
[1760301454623,2.40918804,4150.8,4150.0,2.40961099]
[1760301454826,0.0084,4151.1,4150.3,2.40944579]
[1760301455122,0.0084,4151.1,4149.8,2.41175183]
[1760301455321,1.92,4151.4,4149.8,2.41175183]
[1760301455322,2.4092768,4150.7,4149.9,2.40969607]
[1760301455625,2.40918787,4150.8,4150.1,2.40957306]
[1760301455828,2.41751574,4151.0,4150.2,2.40951321]
[1760301456036,2.41751574,4151.0,4149.9,2.40969661]
[1760301456037,2.40917781,4150.8,4150.1,2.40956965]
[1760301456344,0.0084,4151.0,4149.8,0.002]
[1760301456497,2.41750012,4151.0,4150.2,2.40951461]
[1760301456899,1.92,4151.1,4149.8,0.002]
[1760301457130,2.40922088,4150.8,4150.0,2.40958972]
[1760301457336,0.0084,4150.9,4150.2,2.40949841]
[1760301457665,2.41755748,4150.9,4149.9,2.40969087]
[1760301457848,0.0084,4150.9,4149.8,0.002]
[1760301458142,0.2046,4149.9,4149.8,0.002]
[1760301458500,0.0104,4150.2,4149.8,0.002]
[1760301458699,0.0123,4150.5,4149.8,0.002]
[1760301459135,2.42166792,4150.5,4149.8,0.002]
[1760301459306,0.2007,4149.9,4149.8,0.002]
[1760301459511,2.40954894,4150.2,4149.8,0.002]
[1760301459703,2.42166354,4150.5,4149.8,0.002]
[1760301459704,0.0123,4150.5,4149.8,0.002]
[1760301459921,0.0142,4150.9,4149.9,2.40969661]
[1760301460124,2.40917413,4150.8,4150.1,2.40957968]
[1760301460307,2.40927505,4150.7,4149.9,2.40964709]
[1760301460611,0.0142,4150.9,4149.8,0.002]
[1760301460813,0.001,4151.6,4150.3,0.6336]
[1760301461015,0.001,4151.6,4151.0,2.4090432]
[1760301461201,0.001,4151.6,4151.5,2.40876791]
[1760301461445,0.001,4151.6,4151.5,3.04236791]
[1760301461637,0.001,4151.6,4151.5,3.48066791]
[1760301462157,0.001,4151.6,4151.5,3.60066791]
[1760301463241,0.001,4154.9,4153.4,0.6336]
[1760301463439,0.001,4154.9,4154.3,3.0407444]
[1760301463863,0.001,4154.9,4154.3,3.5003444]
[1760301464368,0.001,4154.9,4154.4,0.6336]
[1760301464542,0.001,4154.9,4154.8,3.04045472]
[1760301464744,0.2229,4158.0,4156.5,0.6336]
[1760301464944,0.2229,4158.0,4157.1,2.40552078]
[1760301465145,2.729624,4158.2,4156.3,1.0932]
[1760301465357,3.628624,4158.2,4156.3,0.4596]
[1760301465564,2.72876409,4158.1,4156.7,0.6336]
[1760301465767,2.40518416,4157.7,4156.7,0.6336]
[1760301465965,2.40518798,4157.7,4156.2,0.228]
[1760301466155,2.4057981,4156.7,4155.5,2.40644821]
[1760301466349,2.4057981,4156.7,4154.8,0.6336]
[1760301466350,1.92,4157.5,4155.6,0.4596]
[1760301466643,0.3217,4157.6,4156.2,0.6336]
[1760301466850,2.40552896,4157.1,4156.2,0.6336]
[1760301467050,2.40552896,4157.1,4156.1,0.6336]
[1760301467371,0.1151,4157.9,4155.9,2.40620562]
[1760301467372,4.32564093,4156.9,4155.9,2.40620562]
[1760301467577,4.32564093,4156.9,4154.9,2.40678232]
[1760301467578,4.118297,4156.4,4154.3,0.228]
[1760301467883,2.40555724,4157.1,4155.8,2.40622332]
[1760301468175,2.40558133,4157.0,4155.9,2.40620417]
[1760301468378,3.592469,4157.1,4155.5,2.86604811]
[1760301468590,3.592469,4157.1,4155.9,0.6336]
[1760301468591,0.3217,4157.1,4155.9,0.6336]
[1760301468948,2.40593781,4156.4,4155.3,2.4065512]
[1760301469151,2.40569668,4156.8,4154.7,0.4596]
[1760301469478,2.40616059,4156.0,4155.0,2.40672652]
[1760301469684,2.40609365,4156.2,4155.2,0.6336]
[1760301469885,1.92,4156.5,4155.2,0.6336]
[1760301470079,2.40594867,4156.4,4154.9,0.6336]
[1760301470246,2.40635514,4155.7,4154.0,0.4596]
[1760301470451,0.3217,4156.3,4154.0,0.4596]
[1760301470689,2.40604738,4156.2,4155.2,2.40657068]
[1760301470977,2.40610682,4156.1,4155.1,2.40667325]
[1760301471181,2.40610682,4156.1,4155.2,2.40658997]
[1760301471377,2.40610187,4156.1,4155.1,0.6336]
[1760301471581,2.40604398,4156.2,4155.1,0.6336]
[1760301471765,2.40617555,4156.0,4155.2,2.4065742]
[1760301471969,2.40617555,4156.0,4155.1,2.40667106]
[1760301472179,2.40617555,4156.0,4155.2,2.40660818]
[1760301472701,2.40610721,4156.1,4155.3,2.40655277]
[1760301472885,2.40610187,4156.1,4155.3,2.40655794]
[1760301473183,2.40617104,4156.0,4155.1,2.40666899]
[1760301473366,2.40621917,4155.9,4155.1,2.40666899]
[1760301473551,2.40614128,4156.1,4155.9,0.12]
[1760301473751,2.40587391,4156.5,4155.9,0.12]
[1760301473958,0.3217,4156.3,4155.9,0.12]
[1760301474166,0.12,4156.8,4155.2,0.6336]
[1760301474167,0.3217,4156.2,4155.2,0.6336]
[1760301474376,10.094389,4156.1,4154.0,0.4596]
[1760301474563,7.52766456,4155.8,4155.7,0.12]
[1760301474773,7.01271856,4155.8,4155.7,0.12]
[1760301474975,1.92,4155.7,4153.8,0.228]
[1760301475151,4.966273,4155.8,4155.2,0.12]
[1760301475152,2.40658166,4155.3,4155.2,0.12]
[1760301475357,2.4066395,4155.2,4154.1,2.40722111]
[1760301475660,2.4065651,4155.3,4154.2,2.40714665]
[1760301475863,2.4067491,4155.0,4154.2,2.40714665]
[1760301476057,2.40684962,4154.9,4154.1,3.04085655]
[1760301476482,2.40684962,4154.9,4154.2,2.40719732]
[1760301476689,2.70534257,4155.0,4154.2,2.40719732]
[1760301476898,2.40679846,4154.9,4154.2,2.40719732]
[1760301477196,0.2986,4155.0,4153.7,2.40749107]
[1760301477197,2.40706207,4154.5,4153.7,2.40749107]
[1760301477385,2.2186,4154.6,4152.8,0.4596]
[1760301477585,2.40725318,4154.2,4153.3,2.40771899]
[1760301477901,2.40761644,4153.5,4152.1,2.40841983]
[1760301478203,15.02623239,4155.8,4152.2,0.4596]
[1760301478402,0.2976,4155.3,4153.9,2.40736521]
[1760301478701,2.40672748,4155.1,4154.2,2.40718904]
[1760301478998,2.40681294,4154.9,4153.9,0.6336]
[1760301479168,3.995202,4155.0,4153.7,0.6336]
[1760301479370,1.92,4154.8,4153.0,0.6336]
[1760301479581,2.40713135,4154.4,4153.7,0.6336]
[1760301479996,2.4067414,4155.0,4154.1,2.407217]
[1760301480174,4.3262,4155.1,4153.8,2.40739164]
[1760301480510,0.2976,4155.2,4153.3,0.6336]
[1760301480799,0.2976,4155.7,4154.0,3.04091518]
[1760301480996,0.2224,4155.9,4154.8,2.40684414]
[1760301481201,2.4062774,4155.8,4155.0,2.40668374]
[1760301481404,1.92,4155.5,4153.9,0.6336]
[1760301481603,5.773412,4155.6,4153.9,0.6336]
[1760301481902,2.40686454,4154.8,4154.0,2.40726152]
[1760301482063,2.40686454,4154.8,4153.6,0.4596]
[1760301482064,0.2976,4155.4,4154.4,2.40705041]
[1760301482265,2.40696802,4154.7,4153.7,0.6336]
[1760301482493,1.92,4154.6,4153.7,2.40749156]
[1760301482800,1.92,4155.2,4153.6,0.4596]
[1760301483108,2.4067416,4155.0,4154.2,2.40718928]
[1760301483400,2.495958,4155.0,4154.1,2.4072468]
[1760301483566,4.32679679,4154.9,4154.1,2.4072468]
[1760301483765,2.40686334,4154.8,4154.1,2.4072468]
[1760301483990,0.2976,4154.9,4153.8,0.002]
[1760301484199,2.40709836,4154.4,4153.8,0.002]
[1760301484396,2.40692478,4154.7,4153.9,2.40732867]
[1760301484584,1.92,4155.3,4154.5,2.40698811]
[1760301484794,0.2976,4155.4,4154.8,2.40680951]
[1760301484998,2.40615519,4156.1,4155.2,2.40661882]
[1760301485171,4.994019,4155.8,4153.8,0.4616]
[1760301485513,2.40598609,4156.3,4153.8,0.4616]
[1760301485514,4.91446428,4155.5,4155.4,0.12]
[1760301485681,6.83446428,4155.5,4155.4,0.12]
[1760301486003,2.40672444,4155.1,4155.0,0.12]
[1760301486302,9.49606259,4155.2,4155.0,0.12]
[1760301486472,12.319493,4154.9,4153.8,0.002]
[1760301486667,1.92,4155.0,4153.8,0.002]
[1760301486668,2.4071444,4154.3,4153.8,0.002]
[1760301486868,2.40708646,4154.4,4153.8,0.002]
[1760301487076,0.2976,4154.8,4153.8,2.40942857]
[1760301487270,1.92,4154.7,4153.9,2.40737589]
[1760301487475,2.40700023,4154.6,4153.9,2.40737589]
[1760301487714,2.40703914,4154.5,4153.8,2.40941616]
[1760301488003,2.40724186,4154.2,4153.8,0.002]
[1760301488205,2.6134762,4153.9,4153.8,0.002]
[1760301488381,4.5334762,4153.9,4153.8,0.002]
[1760301488581,7.8675402,4153.9,4153.8,0.002]
[1760301489101,4.8301762,4153.9,4153.8,0.002]
[1760301489304,8.2077882,4153.9,4153.8,0.002]
[1760301489471,7.0446142,4153.9,4153.8,0.002]
[1760301489875,7.0446142,4153.9,4153.3,1e-08]
[1760301489876,4.32743415,4153.8,4153.3,1e-08]
[1760301490077,36.46020439,4153.4,4153.3,1e-08]
[1760301490418,34.06334539,4153.4,4153.3,1e-08]